[Event "Szansa Chess Open 2022"]
[Site "Warsaw"]
[Date "2022.09.17"]
[Round "2.10"]
[White "Kulesza, Andrzej"]
[Black "Lewtak, Damian"]
[Result "1-0"]
[ECO "B15"]
[WhiteElo "2014"]
[BlackElo "2386"]
[Annotator "ChessBase"]
[PlyCount "119"]
[EventDate "2022.09.17"]
[EventCountry "POL"]
[SourceTitle "playchess.com"]
[Source "ChessBase"]
[SourceQuality "1"]
[TimeControl "900+10"]

1. e4 {[%emt 0:00:03]} c6 {[%emt 0:00:02]} 2. d4 {[%emt 0:00:04]} d5 {[%emt 0:00:01]} 3. Nd2 {[%emt 0:00:03]} dxe4 {[%emt 0:00:03]} 4. Nxe4 {[%emt 0:00:02]} Nf6 {[%emt 0:00:03]} 5. Nxf6+ {[%emt 0:00:03]} exf6 {[%emt 0:00:02]} 6. Nf3 {[%emt 0:00:08]} Na6 {[%emt 0:00:12]} 7. Be2 {[%emt 0:00:19]} Bd6 {[%emt 0:00:14]} 8. Be3 {[%emt 0:00:26]} Nc7 {[%emt 0:00:17]} 9. c4 {[%emt 0:00:18]} O-O {[%emt 0:00:29]} 10. Qd2 {[%emt 0:00:15]} b5 {[%emt 0:00:46]} 11. b3 {[%emt 0:00:19]} Bg4 {[%emt 0:01:11]} 12. O-O {[%emt 0:00:25]} Re8 {[%emt 0:00:13]} 13. Rfe1 {[%emt 0:00:09]} Rb8 14. c5 {[%emt 0:01:08]} Bf8 {[%emt 0:00:31]} 15. Bf4 {[%emt 0:00:04]} Rb7 {[%emt 0:00:18]} 16. h3 {[%emt 0:00:24]} Be6 {[%emt 0:00:03]} 17. Bxc7 {[%emt 0:00:41]} Rxc7 {[%emt 0:00:04]} 18. Rad1 {[%emt 0:00:02]} Rd7 {[%emt 0:00:17]} 19. Qc2 {[%emt 0:00:33]} Bd5 {[%emt 0:00:30]} 20. Nh2 {[%emt 0:00:17]} Qa5 {[%emt 0:01:38]} 21. Nf3 {[%emt 0:00:03]} Qd8 {[%emt 0:00:00]} 22. Nh2 {[%emt 0:00:17]} Qa5 {[%emt 0:00:20]} 23. Nf1 {[%emt 0:00:43]} g6 {[%emt 0:00:54]} 24. Ne3 {[%emt 0:00:23]} Be4 {[%emt 0:00:07]} 25. Qb2 {[%emt 0:00:03]} Bh6 {[%emt 0:00:17]} 26. Ng4 {[%emt 0:00:12]} Bg7 {[%emt 0:00:06]} 27. Bf3 {[%emt 0:00:59]} f5 {[%emt 0:00:10]} 28. Bxe4 {[%emt 0:00:08]} fxe4 {[%emt 0:00:40]} 29. Re2 {[%emt 0:00:17]} f5 {[%emt 0:00:43]} 30. Ne3 {[%emt 0:00:12]} Qd8 {[%emt 0:00:23]} 31. Nc2 {[%emt 0:00:05]} Qg5 {[%emt 0:01:14]} 32. b4 {[%emt 0:01:52]} f4 {[%emt 0:00:30]} 33. Qb3+ {[%emt 0:00:08]} Kh8 {[%emt 0:00:13]} 34. f3 {[%emt 0:00:03]} e3 {[%emt 0:00:23]} 35. a4 {[%emt 0:00:50]} a6 {[%emt 0:00:22]} 36. axb5 {[%emt 0:00:42]} axb5 {[%emt 0:00:02]} 37. Qa2 {[%emt 0:01:15]} Qd8 {[%emt 0:00:57]} 38. Qa6 {[%emt 0:00:43]} Qc8 {[%emt 0:00:07]} 39. Qxc8 {[%emt 0:00:13]} Rxc8 {[%emt 0:00:02]} 40. g3 {[%emt 0:00:01]} g5 {[%emt 0:00:25]} 41. h4 {[%emt 0:00:14]} h6 {[%emt 0:00:31]} 42. hxg5 {[%emt 0:00:17]} hxg5 {[%emt 0:00:03]} 43. gxf4 {[%emt 0:00:01]} gxf4 {[%emt 0:00:01]} 44. Kg2 {[%emt 0:00:10]} Kg8 {[%emt 0:01:05]} 45. Kh3 {[%emt 0:00:14]} Rf8 {[%emt 0:00:56]} 46. Rg2 {[%emt 0:00:03]} Rd5 {[%emt 0:00:34]} 47. Rg6 {[%emt 0:00:10]} Rh5+ {[%emt 0:00:27]} 48. Kg2 {[%emt 0:01:14]} Rff5 {[%emt 0:01:42]} 49. Rg4 {[%emt 0:01:19]} Rfg5 {[%emt 0:00:58]} 50. Ra1 {[%emt 0:00:22]} Rxg4+ {[%emt 0:00:21]} 51. fxg4 {[%emt 0:00:01]} Rh4 {[%emt 0:00:04]} 52. g5 {[%emt 0:00:46]} Kh7 {[%emt 0:00:25]} 53. Ra6 {[%emt 0:00:12]} Kg6 {[%emt 0:00:22]} 54. Ne1 {[%emt 0:00:22]} Rg4+ {[%emt 0:00:15]} 55. Kf3 {[%emt 0:00:01]} Rg1 {[%emt 0:00:13]} 56. Ke2 {[%emt 0:00:31]} Bxd4 {[%emt 0:00:24]} 57. Rxc6+ {[%emt 0:00:02]} Kf5 {[%emt 0:00:01]} 58. Nf3 {[%emt 0:00:14]} Rg2+ {[%emt 0:00:02]} 59. Kd3 {[%emt 0:00:04]} Bg7 {[%emt 0:00:30]} 60. Nh4+ {[%emt 0:00:01]} 1-0

[Event "Szansa Chess Open 2022"]
[Site "Warsaw"]
[Date "2022.09.17"]
[Round "3.1"]
[White "Gumularz, Szymon"]
[Black "Alvarado, Carlos"]
[Result "1-0"]
[ECO "B13"]
[WhiteElo "2532"]
[BlackElo "2108"]
[Annotator "ChessBase"]
[PlyCount "65"]
[EventDate "2022.09.17"]
[EventCountry "POL"]
[SourceTitle "playchess.com"]
[Source "ChessBase"]
[SourceQuality "1"]
[TimeControl "900+10"]

1. e4 {[%emt 0:00:02]} c6 {[%emt 0:00:03]} 2. d4 {[%emt 0:00:05]} d5 {[%emt 0:00:02]} 3. exd5 {[%emt 0:00:02]} cxd5 {[%emt 0:00:03]} 4. Bd3 {[%emt 0:00:02]} Nc6 {[%emt 0:00:02]} 5. c3 {[%emt 0:00:02]} Nf6 {[%emt 0:00:03]} 6. h3 {[%emt 0:00:02]} g6 {[%emt 0:00:06]} 7. Qc2 {[%emt 0:00:06]} Bg7 {[%emt 0:00:05]} 8. Nf3 {[%emt 0:00:02]} O-O {[%emt 0:00:04]} 9. O-O {[%emt 0:00:04]} Qc7 {[%emt 0:00:13]} 10. Re1 {[%emt 0:00:07]} Nh5 {[%emt 0:00:13]} 11. Be3 {[%emt 0:00:03]} Nf4 {[%emt 0:00:05]} 12. Bf1 {[%emt 0:00:01]} Bf5 {[%emt 0:00:07]} 13. Qd2 {[%emt 0:00:02]} Nh5 {[%emt 0:00:35]} 14. Qd1 {[%emt 0:00:07]} Rad8 {[%emt 0:00:45]} 15. Nbd2 {[%emt 0:00:04]} Nf6 {[%emt 0:01:32]} 16. Rc1 {[%emt 0:00:04]} Ne4 {[%emt 0:00:08]} 17. Nb3 {[%emt 0:00:15]} Nd6 {[%emt 0:00:33]} 18. Bf4 {[%emt 0:00:03]} Qc8 {[%emt 0:01:01]} 19. Nc5 {[%emt 0:00:07]} h5 {[%emt 0:01:52]} 20. Nh4 {[%emt 0:00:18]} Bf6 {[%emt 0:00:35]} 21. Nxf5 {[%emt 0:00:05]} Nxf5 {[%emt 0:00:05]} 22. Bd3 {[%emt 0:00:11]} Ng7 {[%emt 0:00:54]} 23. Qf3 {[%emt 0:00:15]} e5 {[%emt 0:00:33]} 24. dxe5 {[%emt 0:00:33]} Nxe5 {[%emt 0:00:10]} 25. Bxe5 {[%emt 0:00:15]} Bxe5 {[%emt 0:00:02]} 26. Rxe5 {[%emt 0:00:05]} Qxc5 {[%emt 0:00:02]} 27. Rd1 {[%emt 0:00:09]} Qb6 {[%emt 0:00:49]} 28. Rxd5 {[%emt 0:00:23]} Qxb2 {[%emt 0:00:13]} 29. Bxg6 {[%emt 0:00:10]} Rc8 {[%emt 0:00:21]} 30. Bxf7+ {[%emt 0:00:13]} Kh8 {[%emt 0:00:23]} 31. Rxh5+ {[%emt 0:00:02]} Nxh5 {[%emt 0:00:04]} 32. Qxh5+ {[%emt 0:00:01]} Kg7 {[%emt 0:00:05]} 33. Qg6+ {[%emt 0:00:01]} 1-0

[Event "Szansa Chess Open 2022"]
[Site "Warsaw"]
[Date "2022.09.17"]
[Round "3.2"]
[White "Czarnecka, Lidia"]
[Black "Kosakowski, Jakub"]
[Result "0-1"]
[ECO "B15"]
[WhiteElo "1957"]
[BlackElo "2457"]
[Annotator "ChessBase"]
[PlyCount "74"]
[EventDate "2022.09.17"]
[EventCountry "POL"]
[SourceTitle "playchess.com"]
[Source "ChessBase"]
[SourceQuality "1"]
[TimeControl "900+10"]

1. e4 {[%emt 0:00:01]} c6 {[%emt 0:00:03]} 2. d4 {[%emt 0:00:02]} d5 {[%emt 0:00:02]} 3. Nc3 {[%emt 0:00:01]} dxe4 {[%emt 0:00:04]} 4. Nxe4 {[%emt 0:00:01]} Nf6 {[%emt 0:00:02]} 5. Nxf6+ {[%emt 0:00:01]} exf6 {[%emt 0:00:02]} 6. c3 {[%emt 0:00:17]} Bd6 {[%emt 0:00:04]} 7. Bd3 {[%emt 0:00:01]} O-O {[%emt 0:00:03]} 8. Ne2 {[%emt 0:00:02]} Re8 {[%emt 0:00:08]} 9. Be3 {[%emt 0:00:14]} Nd7 {[%emt 0:00:15]} 10. O-O {[%emt 0:00:09]} Qc7 {[%emt 0:00:23]} 11. Ng3 {[%emt 0:00:10]} Nf8 {[%emt 0:00:10]} 12. Re1 {[%emt 0:00:17]} Be6 {[%emt 0:00:04]} 13. Qc2 {[%emt 0:00:53]} Re7 {[%emt 0:01:12]} 14. Re2 {[%emt 0:00:07]} Rae8 {[%emt 0:00:07]} 15. Rae1 {[%emt 0:00:46]} h5 {[%emt 0:04:53]} 16. Nf1 {[%emt 0:00:59]} h4 {[%emt 0:00:44]} 17. c4 {[%emt 0:00:22]} h3 {[%emt 0:00:44]} 18. g3 {[%emt 0:01:38]} c5 {[%emt 0:03:16]} 19. dxc5 {[%emt 0:01:06]} Bxc5 {[%emt 0:00:01]} 20. Bxc5 {[%emt 0:00:03]} Qxc5 {[%emt 0:00:02]} 21. b3 {[%emt 0:00:12]} Nd7 {[%emt 0:00:15]} 22. Be4 {[%emt 0:00:39]} Ne5 {[%emt 0:00:30]} 23. Nd2 {[%emt 0:01:16]} Bg4 {[%emt 0:00:45]} 24. Re3 {[%emt 0:00:04]} Rd8 {[%emt 0:00:01]} 25. Bh1 {[%emt 0:00:51]} Red7 {[%emt 0:00:44]} 26. Ne4 {[%emt 0:00:15]} Qa5 {[%emt 0:00:17]} 27. f3 {[%emt 0:01:07]} Bh5 {[%emt 0:00:17]} 28. c5 {[%emt 0:00:58]} Bxf3 {[%emt 0:00:19]} 29. Nd6 {[%emt 0:00:15]} Bxh1 {[%emt 0:00:02]} 30. Kxh1 {[%emt 0:00:02]} Qc7 {[%emt 0:00:11]} 31. R1e2 {[%emt 0:00:44]} b6 {[%emt 0:00:11]} 32. b4 {[%emt 0:00:01]} bxc5 {[%emt 0:00:28]} 33. bxc5 {[%emt 0:00:02]} Qc6+ {[%emt 0:00:06]} 34. Kg1 {[%emt 0:00:50]} Rc7 {[%emt 0:00:02]} 35. Ne4 {[%emt 0:00:20]} Rd4 {[%emt 0:00:08]} 36. Nf2 {[%emt 0:00:32]} Qd5 {[%emt 0:00:30]} 37. Rc3 {[%emt 0:00:45]} Qg2# {[%emt 0:00:25]} 0-1

[Event "Szansa Chess Open 2022"]
[Site "Warsaw"]
[Date "2022.09.17"]
[Round "3.3"]
[White "Jakubowski, Krzysztof"]
[Black "Slomczewski, Michal"]
[Result "1-0"]
[ECO "B48"]
[WhiteElo "2466"]
[BlackElo "2108"]
[Annotator "ChessBase"]
[PlyCount "87"]
[EventDate "2022.09.17"]
[EventCountry "POL"]
[SourceTitle "playchess.com"]
[Source "ChessBase"]
[SourceQuality "1"]
[TimeControl "900+10"]

1. e4 {[%emt 0:00:03]} c5 {[%emt 0:00:01]} 2. Nf3 {[%emt 0:00:02]} e6 {[%emt 0:00:01]} 3. d4 {[%emt 0:00:02]} cxd4 {[%emt 0:00:02]} 4. Nxd4 {[%emt 0:00:03]} Nc6 {[%emt 0:00:01]} 5. Nc3 {[%emt 0:00:02]} Qc7 {[%emt 0:00:01]} 6. Be3 {[%emt 0:00:03]} a6 {[%emt 0:00:02]} 7. Qf3 {[%emt 0:00:02]} b5 {[%emt 0:02:02]} 8. Nxc6 {[%emt 0:00:33]} dxc6 {[%emt 0:00:03]} 9. O-O-O {[%emt 0:00:10]} e5 {[%emt 0:01:35]} 10. Qg3 {[%emt 0:01:05]} Nf6 {[%emt 0:00:54]} 11. f3 {[%emt 0:00:02]} Be6 {[%emt 0:00:17]} 12. Be2 {[%emt 0:00:39]} Nh5 {[%emt 0:02:47]} 13. Qf2 {[%emt 0:01:41]} Be7 {[%emt 0:00:37]} 14. Bb6 {[%emt 0:00:53]} Qb7 {[%emt 0:00:24]} 15. Bc5 {[%emt 0:00:36]} O-O {[%emt 0:00:18]} 16. Bd6 {[%emt 0:00:09]} Qa7 {[%emt 0:00:54]} 17. Qxa7 {[%emt 0:00:17]} Rxa7 {[%emt 0:00:01]} 18. Bxe5 Bc5 {[%emt 0:02:47]} 19. g3 {[%emt 0:00:14]} f6 {[%emt 0:00:47]} 20. Bd6 {[%emt 0:00:09]} Be3+ {[%emt 0:00:01]} 21. Kb1 {[%emt 0:00:02]} Rd8 {[%emt 0:00:38]} 22. f4 {[%emt 0:00:23]} g6 {[%emt 0:00:56]} 23. f5 {[%emt 0:01:02]} Bf7 {[%emt 0:00:36]} 24. Bxh5 {[%emt 0:00:04]} gxh5 {[%emt 0:00:01]} 25. Bf4 {[%emt 0:00:01]} Rxd1+ {[%emt 0:00:21]} 26. Rxd1 {[%emt 0:00:02]} Bc5 {[%emt 0:01:50]} 27. Rd8+ {[%emt 0:02:42]} Kg7 {[%emt 0:00:02]} 28. Bd6 {[%emt 0:00:01]} Bb6 {[%emt 0:01:03]} 29. Rb8 {[%emt 0:00:34]} Bc7 {[%emt 0:00:11]} 30. Bf8+ {[%emt 0:00:09]} Kh8 {[%emt 0:00:05]} 31. Rc8 {[%emt 0:00:01]} Bg8 {[%emt 0:00:10]} 32. Ne2 {[%emt 0:01:29]} Be5 {[%emt 0:00:42]} 33. Rd8 {[%emt 0:00:27]} Rb7 {[%emt 0:00:09]} 34. Nf4 {[%emt 0:00:10]} Rb8 {[%emt 0:00:08]} 35. Rxb8 {[%emt 0:00:19]} Bxb8 {[%emt 0:00:02]} 36. Nxh5 {[%emt 0:00:02]} Bc4 {[%emt 0:00:19]} 37. Nxf6 {[%emt 0:00:23]} Bf7 {[%emt 0:00:21]} 38. Nd7 {[%emt 0:00:09]} Bc7 {[%emt 0:00:05]} 39. e5 {[%emt 0:00:14]} Kg8 {[%emt 0:00:03]} 40. e6 {[%emt 0:00:09]} Be8 {[%emt 0:00:01]} 41. Bh6 {[%emt 0:00:02]} Bxd7 {[%emt 0:00:10]} 42. exd7 {[%emt 0:00:01]} Bd8 {[%emt 0:00:01]} 43. h4 {[%emt 0:00:14]} Kf7 {[%emt 0:00:04]} 44. Bg5 {[%emt 0:00:12]} 1-0

[Event "Szansa Chess Open 2022"]
[Site "Warsaw"]
[Date "2022.09.17"]
[Round "3.4"]
[White "Jarocka, Liwia"]
[Black "Nasuta, Grzegorz"]
[Result "0-1"]
[ECO "B22"]
[WhiteElo "2131"]
[BlackElo "2531"]
[Annotator "ChessBase"]
[PlyCount "68"]
[EventDate "2022.09.17"]
[EventCountry "POL"]
[SourceTitle "playchess.com"]
[Source "ChessBase"]
[SourceQuality "1"]
[TimeControl "900+10"]

1. e4 {[%emt 0:00:01]} c5 {[%emt 0:00:09]} 2. c3 {[%emt 0:00:04]} Nf6 {[%emt 0:00:08]} 3. e5 {[%emt 0:00:02]} Nd5 {[%emt 0:00:01]} 4. Nf3 {[%emt 0:00:02]} d6 {[%emt 0:00:05]} 5. exd6 {[%emt 0:00:08]} Qxd6 {[%emt 0:00:13]} 6. d4 {[%emt 0:00:01]} cxd4 {[%emt 0:00:24]} 7. Nxd4 {[%emt 0:00:20]} a6 {[%emt 0:00:01]} 8. Be2 {[%emt 0:00:02]} e5 {[%emt 0:00:06]} 9. Nb3 {[%emt 0:00:04]} Nc6 {[%emt 0:00:05]} 10. O-O {[%emt 0:00:02]} Be6 {[%emt 0:02:05]} 11. c4 {[%emt 0:00:20]} Ndb4 {[%emt 0:01:23]} 12. Nc3 {[%emt 0:03:21]} O-O-O {[%emt 0:02:00]} 13. Be3 {[%emt 0:01:49]} Nd4 {[%emt 0:03:54]} 14. Bxd4 {[%emt 0:03:58]} exd4 {[%emt 0:00:02]} 15. c5 {[%emt 0:01:35]} Qd7 {[%emt 0:03:48]} 16. Ne4 {[%emt 0:00:03]} d3 {[%emt 0:00:07]} 17. Bf3 {[%emt 0:00:09]} Kb8 {[%emt 0:00:43]} 18. c6 {[%emt 0:02:06]} Nxc6 {[%emt 0:00:08]} 19. Nec5 {[%emt 0:00:04]} Bxc5 {[%emt 0:00:15]} 20. Nxc5 {[%emt 0:00:02]} Qd6 {[%emt 0:00:01]} 21. Rc1 {[%emt 0:00:13]} d2 {[%emt 0:01:35]} 22. Nxa6+ {[%emt 0:00:15]} Ka7 {[%emt 0:00:00]} 23. Rxc6 {[%emt 0:01:48]} bxc6 {[%emt 0:00:01]} 24. Qa4 {[%emt 0:00:01]} Kb7 25. Nb4 {[%emt 0:00:41]} Rc8 {[%emt 0:01:51]} 26. Qa6+ {[%emt 0:00:14]} Kc7 27. Nxc6 {[%emt 0:01:37]} Kd7 {[%emt 0:00:02]} 28. Qb5 {[%emt 0:00:08]} Rxc6 {[%emt 0:00:29]} 29. Bxc6+ {[%emt 0:00:12]} Qxc6 {[%emt 0:00:01]} 30. Qe2 {[%emt 0:00:06]} Qc1 {[%emt 0:00:19]} 31. Rd1 {[%emt 0:00:08]} Ke7 {[%emt 0:00:03]} 32. f4 {[%emt 0:00:26]} Rd8 {[%emt 0:00:10]} 33. Kh1 {[%emt 0:00:06]} Qxd1+ {[%emt 0:00:10]} 34. Qxd1 {[%emt 0:00:01]} Bg4 {[%emt 0:00:02]} 0-1

[Event "Szansa Chess Open 2022"]
[Site "Warsaw"]
[Date "2022.09.17"]
[Round "3.5"]
[White "Vasynda, Oleksandr"]
[Black "Kozak, Antoni"]
[Result "0-1"]
[ECO "D00"]
[WhiteElo "1866"]
[BlackElo "2434"]
[Annotator "ChessBase"]
[PlyCount "56"]
[EventDate "2022.09.17"]
[EventCountry "POL"]
[SourceTitle "playchess.com"]
[Source "ChessBase"]
[SourceQuality "1"]
[TimeControl "900+10"]

1. d4 d5 {[%emt 0:00:02]} 2. Bf4 {[%emt 0:00:06]} c5 {[%emt 0:00:01]} 3. e3 {[%emt 0:00:01]} cxd4 {[%emt 0:00:01]} 4. exd4 {[%emt 0:00:02]} Nc6 {[%emt 0:00:00]} 5. c3 {[%emt 0:00:02]} f6 {[%emt 0:00:01]} 6. Nf3 {[%emt 0:00:33]} g5 {[%emt 0:00:02]} 7. Bg3 {[%emt 0:01:00]} h5 {[%emt 0:00:01]} 8. h3 {[%emt 0:00:21]} Bf5 {[%emt 0:00:12]} 9. Bd3 {[%emt 0:00:22]} e6 {[%emt 0:00:00]} 10. Qe2 {[%emt 0:00:49]} Kf7 {[%emt 0:00:04]} 11. Nbd2 {[%emt 0:00:20]} Bxd3 {[%emt 0:00:28]} 12. Qxd3 {[%emt 0:00:05]} Nge7 {[%emt 0:00:02]} 13. O-O-O {[%emt 0:00:50]} Ng6 {[%emt 0:00:59]} 14. Rde1 {[%emt 0:00:39]} Qd7 {[%emt 0:00:01]} 15. Re2 {[%emt 0:02:52]} h4 {[%emt 0:00:01]} 16. Bh2 {[%emt 0:00:06]} Bd6 {[%emt 0:00:02]} 17. Bxd6 {[%emt 0:02:51]} Qxd6 {[%emt 0:00:02]} 18. g3 {[%emt 0:00:44]} Rac8 {[%emt 0:00:43]} 19. Rhe1 {[%emt 0:00:22]} Rce8 {[%emt 0:00:00]} 20. Rf1 {[%emt 0:01:01]} Kg7 {[%emt 0:00:10]} 21. Ng1 {[%emt 0:00:20]} e5 {[%emt 0:00:12]} 22. dxe5 {[%emt 0:00:04]} Ncxe5 {[%emt 0:00:01]} 23. Qd4 {[%emt 0:00:33]} Qa6 {[%emt 0:00:33]} 24. Qxd5 {[%emt 0:00:14]} Rd8 {[%emt 0:01:29]} 25. Qb3 {[%emt 0:00:03]} Rd6 {[%emt 0:00:04]} 26. Ne4 {[%emt 0:01:01]} Rb6 {[%emt 0:00:13]} 27. Qd5 {[%emt 0:00:08]} Ne7 {[%emt 0:00:28]} 28. Qc5 {[%emt 0:00:10]} Nd3+ {[%emt 0:00:01]} 0-1

[Event "Szansa Chess Open 2022"]
[Site "Warsaw"]
[Date "2022.09.17"]
[Round "3.6"]
[White "Nguyen, Piotr"]
[Black "Janeczko, Jakub"]
[Result "1-0"]
[ECO "A20"]
[WhiteElo "2421"]
[BlackElo "2159"]
[Annotator "ChessBase"]
[PlyCount "37"]
[EventDate "2022.09.17"]
[EventCountry "POL"]
[SourceTitle "playchess.com"]
[Source "ChessBase"]
[SourceQuality "1"]
[TimeControl "900+10"]

1. c4 {[%emt 0:00:01]} e5 {[%emt 0:00:06]} 2. g3 {[%emt 0:00:02]} g6 {[%emt 0:00:01]} 3. Bg2 {[%emt 0:00:02]} Bg7 {[%emt 0:00:01]} 4. Nc3 {[%emt 0:00:02]} d6 {[%emt 0:00:02]} 5. e4 {[%emt 0:00:04]} c5 {[%emt 0:00:13]} 6. Nge2 {[%emt 0:00:05]} Ne7 {[%emt 0:00:04]} 7. O-O {[%emt 0:00:10]} O-O {[%emt 0:00:03]} 8. a3 {[%emt 0:00:05]} Nbc6 {[%emt 0:00:02]} 9. Rb1 {[%emt 0:00:02]} Be6 {[%emt 0:00:06]} 10. d3 {[%emt 0:00:04]} f5 {[%emt 0:02:19]} 11. Nd5 {[%emt 0:00:36]} Bxd5 {[%emt 0:01:25]} 12. exd5 {[%emt 0:00:22]} Nd4 {[%emt 0:00:20]} 13. b4 {[%emt 0:00:36]} b6 {[%emt 0:01:03]} 14. bxc5 {[%emt 0:00:53]} bxc5 {[%emt 0:00:03]} 15. Nxd4 {[%emt 0:00:03]} exd4 {[%emt 0:00:05]} 16. Rb7 {[%emt 0:00:05]} Bf6 {[%emt 0:02:13]} 17. Re1 {[%emt 0:00:33]} Rf7 {[%emt 0:03:31]} 18. Qa4 {[%emt 0:00:23]} Nc8 {[%emt 0:00:42]} 19. Re8+ {[%emt 0:00:18]} 1-0

[Event "Szansa Chess Open 2022"]
[Site "Warsaw"]
[Date "2022.09.17"]
[Round "3.7"]
[White "Fiszer, Bartosz"]
[Black "Kowalski, Igor"]
[Result "0-1"]
[ECO "B06"]
[WhiteElo "2232"]
[BlackElo "2344"]
[Annotator "ChessBase"]
[PlyCount "72"]
[EventDate "2022.09.17"]
[EventCountry "POL"]
[SourceTitle "playchess.com"]
[Source "ChessBase"]
[SourceQuality "1"]
[TimeControl "900+10"]

1. e4 {[%emt 0:00:02]} g6 {[%emt 0:00:01]} 2. d4 {[%emt 0:00:03]} Bg7 {[%emt 0:00:02]} 3. Nc3 {[%emt 0:00:02]} d6 {[%emt 0:00:01]} 4. Be3 {[%emt 0:00:04]} a6 {[%emt 0:00:01]} 5. a4 {[%emt 0:00:11]} b6 {[%emt 0:00:03]} 6. Qd2 {[%emt 0:00:10]} Bb7 {[%emt 0:00:01]} 7. h4 {[%emt 0:00:17]} h5 {[%emt 0:00:01]} 8. f3 {[%emt 0:00:51]} Nd7 {[%emt 0:00:04]} 9. Nge2 {[%emt 0:00:09]} e6 {[%emt 0:00:02]} 10. g3 {[%emt 0:00:16]} Ne7 {[%emt 0:00:18]} 11. Bg2 {[%emt 0:00:31]} Rc8 {[%emt 0:00:21]} 12. O-O-O {[%emt 0:02:17]} b5 {[%emt 0:00:21]} 13. axb5 {[%emt 0:00:13]} Nb6 {[%emt 0:00:03]} 14. Bg5 {[%emt 0:00:54]} axb5 {[%emt 0:01:34]} 15. Nxb5 {[%emt 0:00:59]} Qd7 {[%emt 0:00:22]} 16. Na3 {[%emt 0:00:30]} Ra8 {[%emt 0:00:46]} 17. Nc3 {[%emt 0:02:14]} Nc6 {[%emt 0:00:36]} 18. d5 {[%emt 0:01:27]} Nb4 {[%emt 0:00:42]} 19. dxe6 {[%emt 0:01:56]} fxe6 {[%emt 0:00:02]} 20. Kb1 {[%emt 0:01:48]} Rxa3 {[%emt 0:00:31]} 21. bxa3 {[%emt 0:00:53]} Nc4 {[%emt 0:00:03]} 22. Qc1 {[%emt 0:01:37]} Bxc3 {[%emt 0:00:17]} 23. Rd3 {[%emt 0:00:49]} Bb2 {[%emt 0:06:19]} 24. Qe1 {[%emt 0:00:20]} Nxd3 {[%emt 0:02:26]} 25. cxd3 {[%emt 0:00:03]} Nxa3+ {[%emt 0:00:01]} 26. Kxb2 {[%emt 0:00:14]} Qb5+ {[%emt 0:00:02]} 27. Kxa3 {[%emt 0:00:39]} O-O {[%emt 0:00:37]} 28. Qb4 Ra8+ {[%emt 0:00:01]} 29. Kb3 {[%emt 0:00:05]} Qxd3+ {[%emt 0:00:02]} 30. Kb2 {[%emt 0:00:09]} Qe2+ {[%emt 0:00:01]} 31. Bd2 {[%emt 0:00:21]} Qxg2 {[%emt 0:00:16]} 32. Rc1 {[%emt 0:00:05]} c5 {[%emt 0:00:41]} 33. Qxb7 {[%emt 0:00:12]} Qxd2+ {[%emt 0:00:02]} 34. Rc2 {[%emt 0:00:01]} Qd4+ {[%emt 0:00:44]} 35. Rc3 {[%emt 0:00:15]} Ra4 {[%emt 0:00:45]} 36. Kc2 {[%emt 0:00:21]} Qf2+ {[%emt 0:00:21]} 0-1